[Event "Titled Tuesday Blitz June 13 Late 2023"]
[White "Goryachkina, Aleksandra"]
[Black "Krishnakumar, Sriram"]
[WhiteFideId "4147103"]
[BlackFideId "30915856"]
[WhiteElo "2471"]
[BlackElo "2486"]
[Result "1-0"]
[Round "3"]
[TimeControl "180+2"]
[Date "2023.06.13"]
[WhiteClock "0:00:08"]
[BlackClock "0:00:12"]
[Board "82"]

1. e4 {[%clk 0:02:59]}  e5 {[%clk 0:02:59]} 2. Nf3 {[%clk 0:02:59]}  Nc6 {[%clk 0:03:00]} 3. Bc4 {[%clk 0:02:58]}  Bc5 {[%clk 0:02:59]} 4. c3 {[%clk 0:02:58]}  Nf6 {[%clk 0:02:59]} 5. d3 {[%clk 0:02:58]}  d6 {[%clk 0:02:59]} 6. h3 {[%clk 0:02:51]}  a5 {[%clk 0:02:58]} 7. Nbd2 {[%clk 0:02:50]}  h6 {[%clk 0:02:56]} 8. Nf1 {[%clk 0:02:49]}  Be6 {[%clk 0:02:56]} 9. Bb5 {[%clk 0:02:41]}  Qe7 {[%clk 0:02:52]} 10. Ng3 {[%clk 0:02:38]}  g6 {[%clk 0:02:51]} 11. O-O {[%clk 0:02:33]}  Bd7 {[%clk 0:02:48]} 12. d4 {[%clk 0:02:29]}  Bb6 {[%clk 0:02:46]} 13. a4 {[%clk 0:02:18]}  Nb8 {[%clk 0:02:40]} 14. Bd3 {[%clk 0:02:06]}  Nc6 {[%clk 0:02:18]} 15. Bc2 {[%clk 0:02:00]}  O-O-O {[%clk 0:02:17]} 16. d5 {[%clk 0:01:56]}  Nb8 {[%clk 0:02:16]} 17. b4 {[%clk 0:01:56]}  g5 {[%clk 0:02:15]} 18. Nd2 {[%clk 0:01:31]}  g4 {[%clk 0:02:00]} 19. h4 {[%clk 0:01:28]}  h5 {[%clk 0:01:58]} 20. Nc4 {[%clk 0:01:27]}  Ba7 {[%clk 0:01:57]} 21. Be3 {[%clk 0:01:07]}  Bxe3 {[%clk 0:01:53]} 22. Nxe3 {[%clk 0:01:08]}  Ne8 {[%clk 0:01:48]} 23. Nef5 {[%clk 0:01:03]}  Bxf5 {[%clk 0:01:47]} 24. Nxf5 {[%clk 0:01:03]}  Qf8 {[%clk 0:01:48]} 25. bxa5 {[%clk 0:00:55]}  Ng7 {[%clk 0:01:45]} 26. Bd3 {[%clk 0:00:45]}  Nxf5 {[%clk 0:01:38]} 27. exf5 {[%clk 0:00:45]}  Qe7 {[%clk 0:01:24]} 28. g3 {[%clk 0:00:45]}  Kd7 {[%clk 0:01:23]} 29. Rb1 {[%clk 0:00:42]}  Na6 {[%clk 0:01:21]} 30. Rxb7 {[%clk 0:00:35]}  Nc5 {[%clk 0:01:20]} 31. Rb1 {[%clk 0:00:22]}  Ke8 {[%clk 0:01:19]} 32. a6 {[%clk 0:00:21]}  f6 {[%clk 0:01:17]} 33. Bb5+ {[%clk 0:00:17]}  Kf7 {[%clk 0:01:17]} 34. Bc6 {[%clk 0:00:18]}  Ra8 {[%clk 0:01:15]} 35. Bxa8 {[%clk 0:00:17]}  Rxa8 {[%clk 0:01:16]} 36. Qe2 {[%clk 0:00:18]}  Rxa6 {[%clk 0:01:16]} 37. Ra1 {[%clk 0:00:17]}  Qd8 {[%clk 0:01:13]} 38. Rfb1 {[%clk 0:00:16]}  Qa8 {[%clk 0:01:13]} 39. Qc4 {[%clk 0:00:16]}  Ra5 {[%clk 0:01:11]} 40. Rb5 {[%clk 0:00:12]}  Ra7 {[%clk 0:01:05]} 41. a5 {[%clk 0:00:11]}  Ra6 {[%clk 0:01:03]} 42. Rxc5 {[%clk 0:00:11]}  dxc5 {[%clk 0:01:03]} 43. d6+ {[%clk 0:00:12]}  Kg7 {[%clk 0:01:02]} 44. dxc7 {[%clk 0:00:12]}  Rc6 {[%clk 0:01:00]} 45. a6 {[%clk 0:00:10]}  Rxc7 {[%clk 0:01:00]} 46. Qb5 {[%clk 0:00:10]}  Ra7 {[%clk 0:00:34]} 47. Qb6 {[%clk 0:00:10]}  c4 {[%clk 0:00:31]} 48. Qb5 {[%clk 0:00:07]}  Qc8 {[%clk 0:00:29]} 49. Qa5 {[%clk 0:00:06]}  Qc6 {[%clk 0:00:28]} 50. Ra4 {[%clk 0:00:05]}  Rd7 {[%clk 0:00:26]} 51. Ra1 {[%clk 0:00:05]}  Ra7 {[%clk 0:00:26]} 52. Qa4 {[%clk 0:00:05]}  Qxa4 {[%clk 0:00:25]} 53. Rxa4 {[%clk 0:00:05]}  Kf7 {[%clk 0:00:25]} 54. Kf1 {[%clk 0:00:05]}  Ke7 {[%clk 0:00:25]} 55. Ke2 {[%clk 0:00:05]}  Kd6 {[%clk 0:00:26]} 56. Rxc4 {[%clk 0:00:04]}  Rxa6 {[%clk 0:00:26]} 57. Rb4 {[%clk 0:00:04]}  Ra2+ {[%clk 0:00:23]} 58. Ke3 {[%clk 0:00:05]}  Ra3 {[%clk 0:00:24]} 59. Rc4 {[%clk 0:00:05]}  Ra2 {[%clk 0:00:23]} 60. Rc8 {[%clk 0:00:05]}  Ra3 {[%clk 0:00:23]} 61. Kd3 {[%clk 0:00:04]}  Ra2 {[%clk 0:00:23]} 62. Ke3 {[%clk 0:00:05]}  Ra3 {[%clk 0:00:23]} 63. f3 {[%clk 0:00:05]}  gxf3 {[%clk 0:00:21]} 64. Kxf3 {[%clk 0:00:06]}  Kd5 {[%clk 0:00:22]} 65. g4 {[%clk 0:00:05]}  hxg4+ {[%clk 0:00:21]} 66. Kxg4 {[%clk 0:00:06]}  e4 {[%clk 0:00:22]} 67. h5 {[%clk 0:00:06]}  e3 {[%clk 0:00:21]} 68. Kf3 {[%clk 0:00:06]}  Ra7 {[%clk 0:00:18]} 69. Kxe3 {[%clk 0:00:06]}  Rh7 {[%clk 0:00:18]} 70. Rf8 {[%clk 0:00:02]}  Ke5 {[%clk 0:00:16]} 71. Rc8 {[%clk 0:00:03]}  Rxh5 {[%clk 0:00:16]} 72. Rc5+ {[%clk 0:00:03]}  Kd6 {[%clk 0:00:16]} 73. Ra5 {[%clk 0:00:03]}  Rh3+ {[%clk 0:00:15]} 74. Kd4 {[%clk 0:00:04]}  Rh4+ {[%clk 0:00:16]} 75. Kd3 {[%clk 0:00:04]}  Rf4 {[%clk 0:00:16]} 76. c4 {[%clk 0:00:04]}  Rh4 {[%clk 0:00:16]} 77. Kc3 {[%clk 0:00:05]}  Kc6 {[%clk 0:00:15]} 78. Kb4 {[%clk 0:00:05]}  Kc7 {[%clk 0:00:14]} 79. Ra6 {[%clk 0:00:05]}  Rh6 {[%clk 0:00:08]} 80. c5 {[%clk 0:00:05]}  Rh4+ {[%clk 0:00:08]} 81. Kb5 {[%clk 0:00:05]}  Rh6 {[%clk 0:00:09]} 82. Ra7+ {[%clk 0:00:05]}  Kd8 {[%clk 0:00:09]} 83. Rf7 {[%clk 0:00:05]}  Rh1 {[%clk 0:00:08]} 84. Rxf6 {[%clk 0:00:05]}  Rb1+ {[%clk 0:00:09]} 85. Kc6 {[%clk 0:00:05]}  Rd1 {[%clk 0:00:10]} 86. Rd6+ {[%clk 0:00:05]}  Rxd6+ {[%clk 0:00:10]} 87. Kxd6 {[%clk 0:00:06]}  Ke8 {[%clk 0:00:10]} 88. c6 {[%clk 0:00:06]}  Kd8 {[%clk 0:00:10]} 89. f6 {[%clk 0:00:07]}  Kc8 {[%clk 0:00:11]} 90. f7 {[%clk 0:00:07]}  Kb8 {[%clk 0:00:12]} 91. f8=Q+ {[%clk 0:00:07]}  Ka7 {[%clk 0:00:13]} 92. Qe7+ {[%clk 0:00:08]}  Kb6 {[%clk 0:00:12]} 93. Qb7+ {[%clk 0:00:08]} 1-0


[Site "https://www.chess.com"]

[Event "Titled Tuesday Blitz June 13 Late 2023"]
[White "Annaberdiyev, Meylis"]
[Black "Yurasova, Daria"]
[WhiteFideId "14000563"]
[BlackFideId "34146919"]
[WhiteElo "2416"]
[BlackElo "2109"]
[Result "1-0"]
[Round "3"]
[TimeControl "180+2"]
[Date "2023.06.13"]
[WhiteClock "0:00:28"]
[BlackClock "0:00:05"]
[Board "84"]

1. e4 {[%clk 0:03:00]}  e5 {[%clk 0:02:59]} 2. Nf3 {[%clk 0:03:00]}  Nc6 {[%clk 0:02:59]} 3. Bc4 {[%clk 0:02:56]}  Bc5 {[%clk 0:02:59]} 4. c3 {[%clk 0:02:55]}  Nf6 {[%clk 0:02:59]} 5. d4 {[%clk 0:02:52]}  exd4 {[%clk 0:02:59]} 6. e5 {[%clk 0:02:53]}  d5 {[%clk 0:02:59]} 7. Bb5 {[%clk 0:02:53]}  Ne4 {[%clk 0:02:55]} 8. cxd4 {[%clk 0:02:53]}  Bb6 {[%clk 0:02:55]} 9. Nc3 {[%clk 0:02:49]}  O-O {[%clk 0:02:52]} 10. Be3 {[%clk 0:02:49]}  Bg4 {[%clk 0:02:46]} 11. h3 {[%clk 0:02:49]}  Bh5 {[%clk 0:02:46]} 12. Qc2 {[%clk 0:02:48]}  Bg6 {[%clk 0:02:45]} 13. Qb3 {[%clk 0:02:47]}  Ne7 {[%clk 0:02:29]} 14. O-O {[%clk 0:02:41]}  c6 {[%clk 0:02:28]} 15. Bd3 {[%clk 0:02:42]}  Nd2 {[%clk 0:02:13]} 16. Nxd2 {[%clk 0:02:41]}  Bxd3 {[%clk 0:02:13]} 17. Rfe1 {[%clk 0:02:42]}  Nf5 {[%clk 0:02:08]} 18. Nxd5 {[%clk 0:02:24]}  Qxd5 {[%clk 0:02:06]} 19. Qxd3 {[%clk 0:02:23]}  Nxd4 {[%clk 0:02:06]} 20. Kh1 {[%clk 0:01:21]}  Rfd8 {[%clk 0:01:53]} 21. Nc4 {[%clk 0:01:14]}  Qb5 {[%clk 0:01:10]} 22. Qc3 {[%clk 0:01:04]}  Ne6 {[%clk 0:00:52]} 23. Nd6 {[%clk 0:01:00]}  Qa6 {[%clk 0:00:42]} 24. f4 {[%clk 0:00:57]}  Bxe3 {[%clk 0:00:39]} 25. Qxe3 {[%clk 0:00:57]}  Qb6 {[%clk 0:00:37]} 26. Qg3 {[%clk 0:00:55]}  Qd4 {[%clk 0:00:34]} 27. f5 {[%clk 0:00:47]}  Qf4 {[%clk 0:00:29]} 28. Qxf4 {[%clk 0:00:40]}  Nxf4 {[%clk 0:00:29]} 29. Rad1 {[%clk 0:00:41]}  Nd5 {[%clk 0:00:29]} 30. Nxb7 {[%clk 0:00:38]}  Rdb8 {[%clk 0:00:29]} 31. Na5 {[%clk 0:00:38]}  Rxb2 {[%clk 0:00:28]} 32. Nxc6 {[%clk 0:00:39]}  Nf4 {[%clk 0:00:24]} 33. e6 {[%clk 0:00:38]}  fxe6 {[%clk 0:00:24]} 34. fxe6 {[%clk 0:00:38]}  Re8 {[%clk 0:00:18]} 35. e7 {[%clk 0:00:38]}  Re2 {[%clk 0:00:17]} 36. Rf1 {[%clk 0:00:34]}  Nxg2 {[%clk 0:00:08]} 37. Rd8 {[%clk 0:00:29]}  Rxe7 {[%clk 0:00:05]} 38. Nxe7+ {[%clk 0:00:28]} 1-0


[Site "https://www.chess.com"]

[Event "Titled Tuesday Blitz June 13 Late 2023"]
[White "Gomez Ledo, Roberto Carlos"]
[Black "Zaitsev, Alexander"]
[WhiteFideId "3507076"]
[BlackFideId "4164490"]
[WhiteElo "2378"]
[BlackElo "2373"]
[Result "1-0"]
[Round "3"]
[TimeControl "180+2"]
[Date "2023.06.13"]
[WhiteClock "0:00:22"]
[BlackClock "0:00:00"]
[Board "89"]

1. d4 {[%clk 0:02:55]}  Nf6 {[%clk 0:02:59]} 2. Bf4 {[%clk 0:02:54]}  d5 {[%clk 0:02:59]} 3. e3 {[%clk 0:02:54]}  e6 {[%clk 0:02:59]} 4. Nd2 {[%clk 0:02:53]}  Bd6 {[%clk 0:02:59]} 5. Bg3 {[%clk 0:02:53]}  O-O {[%clk 0:02:59]} 6. Bd3 {[%clk 0:02:52]}  c5 {[%clk 0:02:56]} 7. c3 {[%clk 0:02:50]}  b6 {[%clk 0:02:56]} 8. e4 {[%clk 0:02:46]}  Be7 {[%clk 0:02:01]} 9. e5 {[%clk 0:02:42]}  Nfd7 {[%clk 0:02:01]} 10. Qh5 {[%clk 0:02:39]}  f5 {[%clk 0:01:51]} 11. exf6 {[%clk 0:02:35]}  Nxf6 {[%clk 0:01:51]} 12. Qe2 {[%clk 0:02:35]}  Nc6 {[%clk 0:01:45]} 13. Ngf3 {[%clk 0:02:34]}  cxd4 {[%clk 0:01:38]} 14. Nxd4 {[%clk 0:02:34]}  Nxd4 {[%clk 0:01:22]} 15. cxd4 {[%clk 0:02:35]}  Qe8 {[%clk 0:01:11]} 16. O-O {[%clk 0:02:24]}  Nh5 {[%clk 0:01:11]} 17. Nf3 {[%clk 0:02:06]}  Nf4 {[%clk 0:00:58]} 18. Qe3 {[%clk 0:01:52]}  Nxd3 {[%clk 0:00:49]} 19. Qxd3 {[%clk 0:01:53]}  Bd7 {[%clk 0:00:49]} 20. Rfe1 {[%clk 0:01:50]}  Rc8 {[%clk 0:00:47]} 21. a3 {[%clk 0:01:47]}  Qh5 {[%clk 0:00:37]} 22. Ne5 {[%clk 0:01:39]}  Ba4 {[%clk 0:00:32]} 23. Qa6 {[%clk 0:01:30]}  Bc2 {[%clk 0:00:13]} 24. Qxa7 {[%clk 0:01:27]}  Bf6 {[%clk 0:00:14]} 25. Qxb6 {[%clk 0:01:26]}  Be4 {[%clk 0:00:14]} 26. Qxe6+ {[%clk 0:01:25]}  Kh8 {[%clk 0:00:14]} 27. Rac1 {[%clk 0:01:11]}  Rxc1 {[%clk 0:00:13]} 28. Rxc1 {[%clk 0:01:12]}  h6 {[%clk 0:00:12]} 29. f3 {[%clk 0:00:58]}  Bh7 {[%clk 0:00:12]} 30. Qxd5 {[%clk 0:00:56]}  Qg5 {[%clk 0:00:08]} 31. Re1 {[%clk 0:00:50]}  Bg8 {[%clk 0:00:07]} 32. Qe4 {[%clk 0:00:44]}  Bh7 {[%clk 0:00:07]} 33. Qg4 {[%clk 0:00:37]}  Qd2 {[%clk 0:00:05]} 34. b4 {[%clk 0:00:31]}  Kg8 {[%clk 0:00:04]} 35. Qe6+ {[%clk 0:00:27]}  Kh8 {[%clk 0:00:03]} 36. Nf7+ {[%clk 0:00:27]}  Rxf7 {[%clk 0:00:03]} 37. Qxf7 {[%clk 0:00:27]}  Bxd4+ {[%clk 0:00:02]} 38. Kh1 {[%clk 0:00:27]}  Be5 {[%clk 0:00:00]} 39. Rxe5 {[%clk 0:00:22]} 1-0


[Site "https://www.chess.com"]

[Event "Titled Tuesday Blitz June 13 Late 2023"]
[White "ArtemDyachuk"]
[Black "krucki03"]
[WhiteElo "2628"]
[BlackElo "2471"]
[Result "1-0"]
[Round "3"]
[TimeControl "180+2"]
[Date "2023.06.13"]
[WhiteClock "0:00:45"]
[BlackClock "0:00:14"]
[Board "91"]

1. e4 {[%clk 0:03:00]}  c5 {[%clk 0:02:59]} 2. Nf3 {[%clk 0:03:00]}  d6 {[%clk 0:02:59]} 3. d4 {[%clk 0:02:59]}  cxd4 {[%clk 0:03:00]} 4. Nxd4 {[%clk 0:02:59]}  Nf6 {[%clk 0:02:59]} 5. Nc3 {[%clk 0:03:00]}  g6 {[%clk 0:02:59]} 6. Be3 {[%clk 0:02:56]}  Bg7 {[%clk 0:02:59]} 7. f3 {[%clk 0:02:56]}  O-O {[%clk 0:02:59]} 8. Qd2 {[%clk 0:02:56]}  Nc6 {[%clk 0:02:58]} 9. O-O-O {[%clk 0:02:56]}  d5 {[%clk 0:02:58]} 10. Nxc6 {[%clk 0:02:56]}  bxc6 {[%clk 0:02:58]} 11. Bh6 {[%clk 0:02:57]}  Bxh6 {[%clk 0:02:41]} 12. Qxh6 {[%clk 0:02:56]}  Re8 {[%clk 0:02:41]} 13. h4 {[%clk 0:02:53]}  Rb8 {[%clk 0:01:55]} 14. h5 {[%clk 0:02:51]}  Qd6 {[%clk 0:01:44]} 15. hxg6 {[%clk 0:02:31]}  fxg6 {[%clk 0:01:45]} 16. exd5 {[%clk 0:02:31]}  cxd5 {[%clk 0:01:33]} 17. Nxd5 {[%clk 0:02:30]}  Nh5 {[%clk 0:01:26]} 18. Rxh5 {[%clk 0:01:22]}  gxh5 {[%clk 0:01:16]} 19. Qxd6 {[%clk 0:01:23]}  exd6 {[%clk 0:01:11]} 20. Nf6+ {[%clk 0:01:24]}  Kf7 {[%clk 0:01:08]} 21. Nxe8 {[%clk 0:01:25]}  Kxe8 {[%clk 0:01:09]} 22. Rxd6 {[%clk 0:01:24]}  Bf5 {[%clk 0:01:06]} 23. Bd3 {[%clk 0:01:11]}  Bxd3 {[%clk 0:01:04]} 24. Rxd3 {[%clk 0:01:11]}  Rb5 {[%clk 0:00:59]} 25. c4 {[%clk 0:01:09]}  Rg5 {[%clk 0:00:59]} 26. Rd5 {[%clk 0:01:08]}  Rxg2 {[%clk 0:00:24]} 27. Rxh5 {[%clk 0:01:04]}  Rg7 {[%clk 0:00:17]} 28. Kd2 {[%clk 0:01:01]}  Rf7 {[%clk 0:00:17]} 29. Ke3 {[%clk 0:01:01]}  Kd7 {[%clk 0:00:18]} 30. f4 {[%clk 0:01:00]}  Kc6 {[%clk 0:00:18]} 31. b4 {[%clk 0:00:57]}  Re7+ {[%clk 0:00:19]} 32. Re5 {[%clk 0:00:56]}  Rxe5+ {[%clk 0:00:16]} 33. fxe5 {[%clk 0:00:54]}  Kd7 {[%clk 0:00:17]} 34. c5 {[%clk 0:00:51]}  Ke6 {[%clk 0:00:17]} 35. c6 {[%clk 0:00:48]}  Ke7 {[%clk 0:00:16]} 36. Kf4 {[%clk 0:00:47]}  Kd8 {[%clk 0:00:15]} 37. e6 {[%clk 0:00:45]}  a6 {[%clk 0:00:14]} 1-0


[Site "https://www.chess.com"]

[Event "Titled Tuesday Blitz June 13 Late 2023"]
[White "Przybylski, Wojciech"]
[Black "Fiorito, Joaquin"]
[WhiteFideId "1117599"]
[BlackFideId "180173"]
[WhiteElo "2228"]
[BlackElo "2199"]
[Result "0-1"]
[Round "3"]
[TimeControl "180+2"]
[Date "2023.06.13"]
[WhiteClock "0:00:00"]
[BlackClock "0:00:21"]
[Board "94"]

1. e4 {[%clk 0:03:00]}  c5 {[%clk 0:02:59]} 2. Nf3 {[%clk 0:03:00]}  d6 {[%clk 0:02:59]} 3. Bb5+ {[%clk 0:02:59]}  Nd7 {[%clk 0:02:59]} 4. Ba4 {[%clk 0:02:57]}  a6 {[%clk 0:02:55]} 5. c3 {[%clk 0:02:56]}  Nf6 {[%clk 0:02:54]} 6. Qe2 {[%clk 0:02:55]}  b5 {[%clk 0:02:50]} 7. Bc2 {[%clk 0:02:54]}  e6 {[%clk 0:02:50]} 8. O-O {[%clk 0:02:54]}  c4 {[%clk 0:02:48]} 9. b3 {[%clk 0:02:53]}  cxb3 {[%clk 0:02:44]} 10. axb3 {[%clk 0:02:52]}  Be7 {[%clk 0:02:43]} 11. d4 {[%clk 0:02:52]}  Bb7 {[%clk 0:02:43]} 12. Bg5 {[%clk 0:02:49]}  O-O {[%clk 0:02:42]} 13. h3 {[%clk 0:02:45]}  Rc8 {[%clk 0:02:41]} 14. Re1 {[%clk 0:02:41]}  e5 {[%clk 0:02:20]} 15. Bd3 {[%clk 0:02:40]}  Re8 {[%clk 0:02:08]} 16. d5 {[%clk 0:02:13]}  Nh5 {[%clk 0:02:06]} 17. Bxe7 {[%clk 0:01:52]}  Qxe7 {[%clk 0:02:07]} 18. g3 {[%clk 0:01:52]}  g6 {[%clk 0:02:06]} 19. c4 {[%clk 0:01:47]}  b4 {[%clk 0:01:59]} 20. Nbd2 {[%clk 0:01:38]}  Nc5 {[%clk 0:01:58]} 21. Bc2 {[%clk 0:01:38]}  Ng7 {[%clk 0:01:54]} 22. Nh4 {[%clk 0:01:32]}  Rcd8 {[%clk 0:01:49]} 23. Nf1 {[%clk 0:01:32]}  Bc8 {[%clk 0:01:49]} 24. Kh2 {[%clk 0:01:31]}  f5 {[%clk 0:01:41]} 25. exf5 {[%clk 0:01:28]}  gxf5 {[%clk 0:01:42]} 26. Qd2 {[%clk 0:01:27]}  f4 {[%clk 0:01:26]} 27. Qxb4 {[%clk 0:01:16]}  Rf8 {[%clk 0:01:25]} 28. Qd2 {[%clk 0:01:12]}  Qg5 {[%clk 0:01:21]} 29. b4 {[%clk 0:00:59]}  Nd7 {[%clk 0:01:16]} 30. Re2 {[%clk 0:00:51]}  Nf6 {[%clk 0:01:15]} 31. c5 {[%clk 0:00:47]}  dxc5 {[%clk 0:00:53]} 32. bxc5 {[%clk 0:00:46]}  Nxd5 {[%clk 0:00:54]} 33. Nf3 {[%clk 0:00:37]}  Qh6 {[%clk 0:00:54]} 34. Nh4 {[%clk 0:00:14]}  Ne3 {[%clk 0:00:42]} 35. Bb3+ {[%clk 0:00:14]}  Kh8 {[%clk 0:00:41]} 36. Qb2 {[%clk 0:00:14]}  Nxf1+ {[%clk 0:00:40]} 37. Rxf1 {[%clk 0:00:13]}  fxg3+ {[%clk 0:00:40]} 38. fxg3 {[%clk 0:00:11]}  Rxf1 {[%clk 0:00:40]} 39. Qxe5 {[%clk 0:00:11]}  Rdf8 {[%clk 0:00:35]} 40. Kg2 {[%clk 0:00:08]}  Qc1 {[%clk 0:00:33]} 41. Qd4 {[%clk 0:00:01]}  Bb7+ {[%clk 0:00:32]} 42. Bd5 {[%clk 0:00:01]}  Bxd5+ {[%clk 0:00:32]} 43. Qxd5 {[%clk 0:00:01]}  Rg1+ {[%clk 0:00:25]} 44. Kh2 {[%clk 0:00:00]}  Rd1 {[%clk 0:00:21]} 0-1


[Site "https://www.chess.com"]

[Event "Titled Tuesday Blitz June 13 Late 2023"]
[White "Chernobay, Artem"]
[Black "Bettalli, Francesco"]
[WhiteFideId "4167406"]
[BlackFideId "2816453"]
[WhiteElo "2474"]
[BlackElo "2216"]
[Result "1-0"]
[Round "3"]
[TimeControl "180+2"]
[Date "2023.06.13"]
[WhiteClock "0:00:16"]
[BlackClock "0:00:00"]
[Board "95"]

1. d4 {[%clk 0:03:00]}  f5 {[%clk 0:02:32]} 2. Nf3 {[%clk 0:02:56]}  g6 {[%clk 0:02:13]} 3. g3 {[%clk 0:02:54]}  Bg7 {[%clk 0:02:10]} 4. Bg2 {[%clk 0:02:54]}  d6 {[%clk 0:02:07]} 5. O-O {[%clk 0:02:54]}  Nf6 {[%clk 0:02:08]} 6. c4 {[%clk 0:02:54]}  O-O {[%clk 0:02:09]} 7. Nc3 {[%clk 0:02:54]}  c6 {[%clk 0:02:09]} 8. Re1 {[%clk 0:02:41]}  Qe8 {[%clk 0:02:06]} 9. e4 {[%clk 0:02:39]}  fxe4 {[%clk 0:02:07]} 10. Nxe4 {[%clk 0:02:40]}  Nxe4 {[%clk 0:02:07]} 11. Rxe4 {[%clk 0:02:40]}  e5 {[%clk 0:02:08]} 12. dxe5 {[%clk 0:02:34]}  dxe5 {[%clk 0:02:09]} 13. Re1 {[%clk 0:02:27]}  Bg4 {[%clk 0:01:49]} 14. h3 {[%clk 0:02:26]}  Bxf3 {[%clk 0:01:46]} 15. Bxf3 {[%clk 0:02:27]}  Qf7 {[%clk 0:01:45]} 16. Kg2 {[%clk 0:02:11]}  Nd7 {[%clk 0:01:44]} 17. Be3 {[%clk 0:01:50]}  Rad8 {[%clk 0:01:17]} 18. Be2 {[%clk 0:01:42]}  e4 {[%clk 0:01:16]} 19. Qc2 {[%clk 0:01:40]}  Nf6 {[%clk 0:00:56]} 20. Rad1 {[%clk 0:01:31]}  Qe7 {[%clk 0:00:51]} 21. a3 {[%clk 0:01:21]}  b6 {[%clk 0:00:49]} 22. b4 {[%clk 0:01:16]}  Rxd1 {[%clk 0:00:46]} 23. Rxd1 {[%clk 0:01:17]}  Rd8 {[%clk 0:00:47]} 24. Rxd8+ {[%clk 0:01:14]}  Qxd8 {[%clk 0:00:47]} 25. c5 {[%clk 0:01:13]}  b5 {[%clk 0:00:42]} 26. a4 {[%clk 0:01:13]}  a6 {[%clk 0:00:42]} 27. axb5 {[%clk 0:01:09]}  axb5 {[%clk 0:00:43]} 28. Qa2+ {[%clk 0:00:41]}  Nd5 {[%clk 0:00:41]} 29. Bg4 {[%clk 0:00:34]}  Kh8 {[%clk 0:00:40]} 30. Bd2 {[%clk 0:00:34]}  Qe8 {[%clk 0:00:34]} 31. Qb3 {[%clk 0:00:30]}  h5 {[%clk 0:00:31]} 32. Be2 {[%clk 0:00:30]}  Bd4 {[%clk 0:00:26]} 33. Bxb5 {[%clk 0:00:27]}  e3 {[%clk 0:00:26]} 34. fxe3 {[%clk 0:00:17]}  Qe4+ {[%clk 0:00:25]} 35. Kh2 {[%clk 0:00:17]}  cxb5 {[%clk 0:00:17]} 36. exd4 {[%clk 0:00:18]}  Qe2+ {[%clk 0:00:17]} 37. Kh1 {[%clk 0:00:18]}  Qf1+ {[%clk 0:00:15]} 38. Kh2 {[%clk 0:00:18]}  Qf2+ {[%clk 0:00:15]} 39. Kh1 {[%clk 0:00:18]}  Qf1+ {[%clk 0:00:15]} 40. Kh2 {[%clk 0:00:19]}  Qe2+ {[%clk 0:00:12]} 41. Kg1 {[%clk 0:00:19]}  Nf6 {[%clk 0:00:06]} 42. Qe3 {[%clk 0:00:16]}  Qd1+ {[%clk 0:00:06]} 43. Qe1 {[%clk 0:00:16]}  Qf3 {[%clk 0:00:06]} 44. Qe5 {[%clk 0:00:15]}  Qd1+ {[%clk 0:00:02]} 45. Be1 {[%clk 0:00:16]}  Kg7 {[%clk 0:00:00]} 46. Kg2 {[%clk 0:00:16]} 1-0


[Site "https://www.chess.com"]

[Event "Titled Tuesday Blitz June 13 Late 2023"]
[White "Dudzinski, Pawel"]
[Black "Silva, Caio Henrique Angelico"]
[WhiteFideId "1117890"]
[BlackFideId "22777210"]
[WhiteElo "2099"]
[BlackElo "2096"]
[Result "1-0"]
[Round "3"]
[TimeControl "180+2"]
[Date "2023.06.13"]
[WhiteClock "0:00:11"]
[BlackClock "0:00:02"]
[Board "96"]

1. e4 {[%clk 0:02:32]}  c6 {[%clk 0:02:58]} 2. d4 {[%clk 0:02:31]}  d5 {[%clk 0:02:58]} 3. exd5 {[%clk 0:02:32]}  cxd5 {[%clk 0:02:59]} 4. Bd3 {[%clk 0:02:33]}  Nc6 {[%clk 0:02:55]} 5. c3 {[%clk 0:02:33]}  Nf6 {[%clk 0:02:53]} 6. h3 {[%clk 0:02:34]}  g6 {[%clk 0:02:51]} 7. Nf3 {[%clk 0:02:34]}  Bf5 {[%clk 0:02:49]} 8. O-O {[%clk 0:02:34]}  Qc7 {[%clk 0:02:48]} 9. Re1 {[%clk 0:02:34]}  Bxd3 {[%clk 0:02:43]} 10. Qxd3 {[%clk 0:02:34]}  e6 {[%clk 0:02:44]} 11. Ne5 {[%clk 0:02:31]}  Nxe5 {[%clk 0:02:42]} 12. dxe5 {[%clk 0:02:30]}  Nd7 {[%clk 0:02:42]} 13. f4 {[%clk 0:02:30]}  Bg7 {[%clk 0:02:19]} 14. Be3 {[%clk 0:02:29]}  O-O {[%clk 0:02:18]} 15. Nd2 {[%clk 0:02:29]}  a6 {[%clk 0:02:17]} 16. Nb3 {[%clk 0:02:28]}  b5 {[%clk 0:02:16]} 17. Nd4 {[%clk 0:02:27]}  Nc5 {[%clk 0:02:15]} 18. Qe2 {[%clk 0:02:26]}  Rab8 {[%clk 0:02:15]} 19. a3 {[%clk 0:02:23]}  Ne4 {[%clk 0:02:04]} 20. Kh2 {[%clk 0:02:17]}  Qd7 {[%clk 0:01:53]} 21. Nf3 {[%clk 0:02:15]}  a5 {[%clk 0:01:51]} 22. Nd2 {[%clk 0:02:15]}  Nxd2 {[%clk 0:01:50]} 23. Qxd2 {[%clk 0:02:15]}  Rfc8 {[%clk 0:01:48]} 24. Bd4 {[%clk 0:02:10]}  Bf8 {[%clk 0:01:45]} 25. Qe3 {[%clk 0:02:01]}  b4 {[%clk 0:01:45]} 26. axb4 {[%clk 0:02:00]}  axb4 {[%clk 0:01:45]} 27. Ra7 {[%clk 0:01:57]}  Rb7 {[%clk 0:01:46]} 28. Rea1 {[%clk 0:01:56]}  bxc3 {[%clk 0:01:45]} 29. bxc3 {[%clk 0:01:48]}  Rcb8 {[%clk 0:01:25]} 30. Rxb7 {[%clk 0:01:42]}  Qxb7 {[%clk 0:01:26]} 31. Ra7 {[%clk 0:01:40]}  Qc6 {[%clk 0:01:26]} 32. g4 {[%clk 0:01:27]}  Qc4 {[%clk 0:01:23]} 33. Kg3 {[%clk 0:01:22]}  Rb2 {[%clk 0:01:11]} 34. f5 {[%clk 0:00:51]}  exf5 {[%clk 0:01:01]} 35. e6 {[%clk 0:00:40]}  f4+ {[%clk 0:00:05]} 36. Qxf4 {[%clk 0:00:26]}  Qd3+ {[%clk 0:00:04]} 37. Kh4 {[%clk 0:00:25]}  f5 {[%clk 0:00:02]} 38. e7 {[%clk 0:00:14]}  Bxe7+ {[%clk 0:00:02]} 39. Rxe7 {[%clk 0:00:14]}  Rh2 {[%clk 0:00:02]} 40. Qb8# {[%clk 0:00:11]} 1-0


[Site "https://www.chess.com"]